fUST/lending_fUST_20251031
["ID","MTS","AMOUNT","RATE_DAILY","PERIOD"]
[392734974,1761889840943,-3e-08,0.000364,14]
[392735020,1761890403668,370.78663527,0.00025205,2]
[392735024,1761890810009,164.06749436,0.00037112,120]
[392735045,1761891031896,-150.0,0.00028113,2]
[392735046,1761891031906,-200.0,0.00028113,2]
[392735047,1761891031915,-150.0,0.00030669,2]
[392735048,1761891031924,-5.4422965,0.00032895,2]
[392735049,1761891031954,-258.5902515,0.00032895,2]
[392735050,1761891031963,-150.0,0.00033234,2]
[392735051,1761891031972,-325.08234433,0.00034822,2]
[392735052,1761891031981,-496.15971264,0.00034824,2]
[392735053,1761891031990,-2.73859434,0.00034824,2]
[392735235,1761891147546,-150.0,0.00026643,2]
[392735236,1761891196612,177.0,0.0002589,2]
[392735237,1761891215762,-150.0,0.00026638,2]
[392735238,1761891282630,-150.0,0.0002664,2]
[392735239,1761891351564,-150.0,0.00026644,2]
[392735240,1761891427037,-150.0,0.00026658,2]
[392735241,1761891474034,1536.43182188,0.00037086,120]
[392735242,1761891489357,150.0,0.00025733,2]
[392735243,1761891508907,150.0,0.0002589,2]
[392735244,1761891535407,-177.0,0.0002789,2]
[392735245,1761891535438,-150.0,0.00028072,2]
[392735246,1761891535465,-228.0,0.0002811,27]
[392735247,1761891535492,-450.58153108,0.00029437,7]
[392735248,1761891535520,-177.0,0.0002989,2]
[392735249,1761891535550,-150.0,0.00030411,2]
[392735250,1761891535578,-879.32311701,0.00031428,2]
[392735251,1761891535608,-1376.84320256,0.00031428,2]
[392735252,1761891535638,-150.0,0.00032751,2]
[392735253,1761891535666,-400.0,0.0003308,2]
[392735254,1761891535694,-191.5142987,0.00033081,3]
[392735255,1761891535961,-1339.4857013,0.00033081,3]
[392735256,1761891535991,-300.0,0.00033743,30]
[392735257,1761891536020,-300.0,0.00033743,30]
[392735258,1761891536048,-300.0,0.00033743,30]
[392735259,1761891536076,-300.0,0.00033743,30]
[392735260,1761891536103,-300.0,0.00033743,30]
[392735261,1761891536134,-300.0,0.00033743,30]
[392735262,1761891536164,-300.0,0.00033743,30]
[392735263,1761891536192,-300.0,0.00033743,30]
[392735264,1761891536220,-300.0,0.00033743,30]
[392735265,1761891536248,-300.0,0.00033743,30]
[392735266,1761891536278,-300.0,0.00033743,30]
[392735267,1761891536308,-300.0,0.00033743,30]
[392735268,1761891538343,-300.0,0.00033743,30]
[392735269,1761891538372,-300.0,0.00033743,30]
[392735270,1761891538400,-300.0,0.00033743,30]
[392735271,1761891538580,-7775.62965061,0.00033835,2]
[392735272,1761891541322,-1359.07742199,0.00033835,2]
[392735273,1761891560918,-150.0,0.00027122,2]
[392735274,1761891636374,-150.0,0.00026671,2]
[392735275,1761891702560,-150.0,0.00026253,2]
[392735276,1761891770813,-150.0,0.00026259,2]
[392735277,1761891820778,150.0,0.0002589,2]
[392735278,1761891830708,-150.0,0.00026267,2]
[392735279,1761891894144,150.0,0.00026265,2]
[392735283,1761891958459,150.0,0.00025767,2]
[392735289,1761892103075,2318.83798029,0.0002,2]
[392735290,1761892110070,7681.17201971,0.00026,30]
[392735291,1761892110092,10000.01,0.00026,30]
[392735292,1761892110114,10000.01,0.00026,30]
[392735293,1761892110136,10000.01,0.00026,30]
[392735294,1761892110158,10000.01,0.00026,30]
[392735295,1761892110180,3787.80082824,0.00026,30]
[392735296,1761892112533,282.08148419,0.0002,2]
[392735297,1761892112557,282.08148419,0.0002,2]
[392735298,1761892112578,1739.50898933,0.0002,2]
[392735299,1761892114989,4472.70018243,0.0002465,2]
[392735300,1761892115014,10000.01,0.0002465,2]
[392735301,1761892115036,10000.01,0.0002465,2]
[392735302,1761892115160,10000.01,0.0002465,2]
[392735303,1761892115183,7286.36370388,0.0002465,2]
[392735304,1761892115210,509.97887887,0.0002465,2]
[392735305,1761892115236,461.552242,0.00024,2]
[392735306,1761892116922,1742.11517525,0.00024142,2]
[392735307,1761892116944,10000.01,0.00024142,2]
[392735308,1761892116966,8714.07911526,0.00024142,2]
[392735309,1761892132462,150.0,0.0002589,2]
[392735344,1761892232067,-177.0,0.0002789,2]
[392735346,1761892232076,-204.0,0.0002989,2]
[392735347,1761892232086,-205.160613,0.0003189,2]
[392735351,1761892232095,-407.99275358,0.000333,2]
[392735352,1761892232104,-466.27743267,0.000333,2]
[392735354,1761892232113,-385.29589597,0.000333,2]
[392735571,1761892240698,1003.0,0.00028993,120]
[392735574,1761892242964,-1003.0,0.00030442,120]
[392735575,1761892242974,-342.53403409,0.000333,2]
[392735576,1761892242983,-160.0,0.00033967,2]
[392735577,1761892242993,-400.0,0.00034001,3]
[392735578,1761892243002,-400.0,0.00034001,2]
[392735579,1761892243012,-2000.3697155,0.00034002,2]
[392735580,1761892243021,-5629.77983392,0.00034775,2]
[392735584,1761892246115,-1003.0,0.00031964,120]
[392735585,1761892246124,-1003.0,0.00033563,120]
[392735586,1761892246133,-2337.27569708,0.00034775,2]
[392735587,1761892246142,-160.0,0.00035383,2]
[392735588,1761892246151,-600.0,0.00035469,30]
[392735589,1761892246160,-300.0,0.00035469,30]
[392735590,1761892246169,-300.0,0.00035469,30]
[392735591,1761892246178,-300.0,0.00035469,30]
[392735592,1761892246189,-300.0,0.00035469,30]
[392735593,1761892246202,-300.0,0.00035469,30]
[392735594,1761892246211,-300.0,0.00035469,30]
[392735595,1761892246220,-300.0,0.00035469,30]
[392735596,1761892246229,-300.0,0.00035469,30]
[392735597,1761892246239,-300.0,0.00035469,30]
[392735598,1761892246249,-300.0,0.00035469,30]
[392735599,1761892246258,-300.0,0.00035469,30]
[392735600,1761892246270,-300.0,0.00035469,30]
[392735601,1761892246280,-300.0,0.00035469,30]
[392735602,1761892246289,-300.0,0.00035469,30]
[392735603,1761892246299,-300.0,0.00035469,30]
[392735604,1761892246308,-184.124,0.00035469,42]
[392735605,1761892246318,-500.0,0.00035899,15]
[392735606,1761892246328,-500.0,0.00035899,15]
[392735607,1761892246338,-500.0,0.00035899,15]
[392735608,1761892246348,-500.0,0.00035899,2]
[392735609,1761892246357,-500.0,0.00035899,15]
[392735610,1761892246366,-500.0,0.00035899,15]
[392735611,1761892246376,-500.0,0.00035899,15]
[392735612,1761892246385,-500.0,0.00035899,15]
[392735613,1761892246394,-500.0,0.00035899,2]
[392735614,1761892246403,-500.0,0.00035899,15]
[392735615,1761892246412,-500.0,0.00035899,15]
[392735616,1761892246421,-300.0,0.00035899,15]
[392735617,1761892246430,-500.0,0.00035899,2]
[392735618,1761892246439,-500.0,0.00035899,15]
[392735619,1761892246448,-500.0,0.00035899,15]
[392735620,1761892246458,-500.0,0.00035899,15]
[392735621,1761892246467,-500.0,0.00035899,2]
[392735622,1761892246476,-500.0,0.00035899,15]
[392735623,1761892246485,-382.58369459,0.00035899,15]
[392735624,1761892246494,-625.49553255,0.00035899,15]
[392735625,1761892246503,-500.0,0.00035899,15]
[392735626,1761892246512,-500.0,0.00035899,2]
[392735627,1761892246521,-500.0,0.00035899,15]
[392735628,1761892246530,-417.68504458,0.00035899,15]
[392735629,1761892246539,-500.0,0.00035899,2]
[392735630,1761892246548,-500.0,0.00035899,15]
[392735631,1761892246557,-500.0,0.00035899,15]
[392735632,1761892246566,-303.89293217,0.00035899,15]
[392735633,1761892246575,-500.0,0.00035899,2]
[392735634,1761892246584,-500.0,0.00035899,2]
[392735635,1761892246592,-519.59001496,0.00035899,15]
[392735636,1761892246601,-500.0,0.00035899,2]
[392735637,1761892246610,-500.0,0.00035899,2]
[392735638,1761892246618,-500.0,0.00035899,2]
[392735639,1761892246627,-500.0,0.00035899,2]
[392735640,1761892246635,-500.0,0.00035899,2]
[392735641,1761892246644,-500.0,0.00035899,2]
[392735642,1761892246653,-500.0,0.00035899,2]
[392735643,1761892246661,-271.36178854,0.00035899,2]
[392735644,1761892246670,-641.27038897,0.00035899,15]
[392735645,1761892246679,-8000.0,0.000359,30]
[392735646,1761892246689,-500.0,0.000359,30]
[392735647,1761892246698,-260.0,0.00035931,2]
[392735648,1761892246707,-5308.0,0.00036024,2]
[392735649,1761892246716,-153.651382,0.00036058,15]
[392735650,1761892246725,-178.0,0.00036058,7]
[392735651,1761892246812,-177.0,0.00036076,120]
[392735652,1761892246821,-989.023,0.00036123,2]
[392735653,1761892246830,-639.449,0.00036123,2]
[392735654,1761892246839,-2175.964,0.00036123,2]
[392735655,1761892246848,-412.0,0.00036123,2]
[392735656,1761892246858,-153.651382,0.00036136,15]
[392735657,1761892246866,-606.68559595,0.00036164,30]
[392735658,1761892246875,-13186.86725933,0.00036173,2]
[392735659,1761892246884,-163.78829688,0.00036173,2]
[392735660,1761892246893,-500.0,0.00036174,30]
[392735661,1761892246902,-153.651382,0.00036215,15]
[392735662,1761892246911,-151.0,0.00036238,2]
[392735663,1761892246920,-151.0,0.00036238,2]
[392735664,1761892246929,-151.0,0.00036238,2]
[392735665,1761892246938,-151.0,0.00036238,2]
[392735666,1761892246946,-151.0,0.00036238,2]
[392735667,1761892246956,-151.0,0.00036238,2]
[392735668,1761892246964,-151.0,0.00036238,2]
[392735669,1761892246973,-151.0,0.00036238,2]
[392735670,1761892246982,-151.0,0.00036238,2]
[392735671,1761892246991,-151.0,0.00036238,2]
[392735672,1761892247000,-151.0,0.00036238,2]
[392735673,1761892247009,-151.0,0.00036238,2]
[392735674,1761892247018,-151.0,0.00036238,2]
[392735675,1761892247027,-151.0,0.00036238,2]
[392735676,1761892247036,-151.0,0.00036238,2]
[392735677,1761892247045,-151.0,0.00036238,2]
[392735678,1761892247054,-151.0,0.00036238,2]
[392735679,1761892247063,-151.0,0.00036238,2]
[392735680,1761892247072,-151.0,0.00036238,2]
[392735681,1761892247081,-151.0,0.00036238,2]
[392735682,1761892247090,-1433.32,0.0003624,10]
[392735683,1761892247098,-1194.43,0.0003624,10]
[392735684,1761892247107,-995.36,0.0003624,10]
[392735685,1761892247116,-2201.7579544,0.0003624,3]
[392735686,1761892247125,-271.4331985,0.00036249,15]
[392735687,1761892247134,-172.18,0.0003625,3]
[392735688,1761892247143,-516.59,0.0003625,3]
[392735689,1761892247152,-30824.6113616,0.0003625,3]
[392735690,1761892247160,-542362.03388911,0.0003626,2]
[392735694,1761892431053,5000.0,0.00037136,120]
[392735695,1761892481423,5000.0,0.00037136,60]
[392735696,1761892561593,257.733376,0.00013699,2]
[392735697,1761892561791,257.733376,0.00020187,2]
[392735698,1761892561992,257.733376,0.00026676,2]
[392735699,1761892675269,10000.01,0.00027445,2]
[392735700,1761892675290,10000.01,0.00027445,2]
[392735701,1761892675312,10000.01,0.00027445,2]
[392735702,1761892675334,10000.01,0.00027445,2]
[392735703,1761892675354,10000.01,0.00027445,2]
[392735704,1761892675374,10000.01,0.00027445,2]
[392735705,1761892675395,10000.01,0.00027445,2]
[392735706,1761892675417,10000.01,0.00027445,2]
[392735707,1761892675438,10000.01,0.00027445,2]
[392735708,1761892675459,9999.91,0.00027445,2]
[392735709,1761892736494,300000.00760634,0.00037132,60]
[392735710,1761892784634,1973.96,0.00037132,60]
[392735718,1761892827919,1159.9315711,0.0002,2]
[392735719,1761892940918,5000.0,0.00037132,60]
[392735721,1761892989681,-5000.0,0.0003218,2]
[392735722,1761892992711,-5000.0,0.00032505,2]
[392735723,1761892995556,-320.0,0.00032832,2]
[392735724,1761892995587,-4360.01,0.00032833,2]
[392735725,1761892998553,-639.99,0.00032833,2]
[392735726,1761892998582,-257.733376,0.00033165,2]
[392735728,1761893395281,1742375.27274004,0.0003713,50]
[392735786,1761893432219,-816.0,0.00030137,120]
[392735818,1761893440420,-1109.0375446,0.00030137,120]
[392735819,1761893440454,-1451.01066956,0.00030137,120]
[392735839,1761893446342,-1623.95178584,0.00030137,120]
[392735840,1761893446351,-896.096,0.00034242,120]
[392735841,1761893446362,-153.651382,0.00034789,2]
[392735842,1761893446373,-153.651382,0.00034789,15]
[392735843,1761893446383,-281.4000536,0.00034853,2]
[392735844,1761893446393,-1003.0,0.00035241,120]
[392735845,1761893446402,-153.651382,0.00035476,2]
[392735846,1761893446411,-153.651382,0.00035476,15]
[392735847,1761893446420,-628.40016196,0.00035866,2]
[392735848,1761893446430,-322.7425611,0.00035888,2]
[392735849,1761893446439,-5590.98290253,0.00036045,2]
[392735850,1761893446450,-293.80477964,0.00036045,3]
[392735851,1761893449251,5000.0,0.0002611,2]
[392735852,1761893472139,3737.88097111,0.0002611,2]
[392735853,1761893586356,5000.0,0.00027,2]
[392735854,1761893594468,5000.0,0.00027445,2]
[392735855,1761893609628,5000.0,0.00027668,2]
[392735856,1761893617443,5000.0,0.00027668,2]
[392735857,1761893632663,5000.0,0.0002611,2]
[392735858,1761893640598,5000.0,0.0002611,2]
[392735859,1761893656322,5000.0,0.00027,2]
[392735860,1761893664085,5000.0,0.00027,2]
[392735861,1761893679284,5000.0,0.0002611,2]
[392735862,1761893687223,5000.0,0.0002611,2]
[392735863,1761893710778,0.01,0.0002611,2]
[392735864,1761893710832,4999.99,0.0002611,2]
[392735865,1761893711040,-177.00385941,0.00027,2]
[392735866,1761893713768,-161.68885014,0.00027,2]
[392735868,1761893725783,-423.92705957,0.00027,2]
[392735869,1761893729092,-330.67673887,0.00027,2]
[392735870,1761893892503,-272.06322253,0.00026942,2]
[392735872,1761893895984,296.0,0.0002611,2]
[392735873,1761893896007,4704.0,0.0002611,2]
[392735874,1761893918213,5000.0,0.0002611,2]
[392735875,1761893926421,296.01,0.0002611,2]
[392735876,1761893926444,4703.99,0.0002611,2]
[392735877,1761893941804,5000.0,0.0002611,2]
[392735878,1761893949631,296.02,0.0002611,2]
[392735879,1761893949654,4703.98,0.0002611,2]
[392735917,1761893965648,5000.0,0.0002611,2]
[392735918,1761893967493,-316.0,0.00026999,2]
[392735919,1761893970957,150.0,0.0002589,2]
[392735920,1761893974386,5000.0,0.00026885,2]
[392735921,1761893990640,5000.0,0.0002611,2]
[392735922,1761893998454,5000.0,0.0002611,2]
[392735923,1761894014267,0.01,0.0002611,2]
[392735924,1761894014289,4999.99,0.0002611,2]
[392735925,1761894022171,5000.0,0.0002611,2]
[392735926,1761894037719,0.02,0.0002611,2]
[392735927,1761894037742,4999.98,0.0002611,2]
[392735928,1761894045599,5000.0,0.0002611,2]
[392735929,1761894063095,-436.06302276,0.00026854,2]
[392735930,1761894073317,-155.71259973,0.00026805,2]
[392735931,1761894077294,-160.7605122,0.00026805,2]
[392735932,1761894078956,-164.23892824,0.00026805,2]
[392735933,1761894083229,-327.5070092,0.00026805,2]
[392735934,1761894087279,-506.69648869,0.00026805,2]
[392735935,1761894089361,-295.87677975,0.00026805,2]
[392735936,1761894093834,0.03,0.00013699,2]
[392735937,1761894093857,254.05,0.00013699,2]
[392735938,1761894094293,-304.49684809,0.00026805,2]
[392735939,1761894094722,-304.49684809,0.00026805,2]
[392735941,1761894140080,150.0,0.00020531,2]
[392735942,1761894140517,150.0,0.00022397,2]
[392735944,1761894153290,254.08,0.00013699,2]
[392735945,1761894167489,-295.79324258,0.00026805,2]
[392735946,1761894171016,-290.88548872,0.00026805,2]
[392735947,1761894172887,-290.88548872,0.00026805,2]
[392735948,1761894173482,-290.88548872,0.00026805,2]
[392735949,1761894184247,-491.49239372,0.00026805,2]
[392735950,1761894204800,150.0,0.0002048,2]
[392735951,1761894205193,150.0,0.00022342,2]
[392735952,1761894256639,5000.0,0.0002611,2]
[392735953,1761894264956,4700.01,0.0002611,2]
[392735954,1761894264978,299.99,0.0002611,2]
[392735955,1761894282691,5000.0,0.0002611,2]
[392735956,1761894282900,188.68885014,0.0002589,2]
[392735957,1761894291198,4511.33114986,0.0002611,2]
[392735958,1761894291222,488.66885014,0.0002611,2]
[392735959,1761894306615,5000.0,0.0002611,2]
[392735960,1761894314912,1799.69863394,0.0002611,2]
[392735961,1761894330103,2711.64251592,0.0002611,2]
[392735962,1761894330126,2288.35748408,0.0002611,2]
[392735963,1761894352466,5000.0,0.0002611,2]
[392735964,1761894375636,2711.65251592,0.0002611,2]
[392735965,1761894375661,2288.34748408,0.0002611,2]
[392735966,1761894397430,150.0,0.00020478,2]
[392735967,1761894398583,5000.0,0.0002611,2]
[392735968,1761894401556,1058.70039989,0.00025979,16]
[392735969,1761894420935,1502.96211603,0.0002611,2]
[392735970,1761894420958,3497.03788397,0.0002611,2]
[392735972,1761894443929,5000.0,0.0002611,2]
[392735973,1761894466673,1502.97211603,0.0002611,2]
[392735974,1761894466696,3497.02788397,0.0002611,2]
[392735975,1761894491130,5000.0,0.0002611,2]
[392735976,1761894514444,1502.98211603,0.0002611,2]
[392735977,1761894514468,3497.01788397,0.0002611,2]
[392735978,1761894537271,5000.0,0.0002611,2]
[392735979,1761894560135,1502.99211603,0.0002611,2]
[392735980,1761894560158,3497.00788397,0.0002611,2]
[392735981,1761894584230,5000.0,0.0002611,2]
[392735982,1761894595658,150.0,0.0002589,2]
[392735983,1761894607059,1353.00211603,0.0002611,2]
[392735984,1761894607086,2184.81271941,0.0002611,2]
[392736023,1761894632461,-177.0,0.0002789,2]
[392736025,1761894632472,-158.3292384,0.000279,2]
[392736031,1761894632572,-1000.0,0.00028,2]
[392736034,1761894632582,-158.3292384,0.00028845,2]
[392736037,1761894632592,-685.5800788,0.00029,3]
[392736061,1761894637805,501.0,0.00027161,120]
[392736153,1761894639177,501.0,0.00028519,120]
[392736162,1761894640446,501.0,0.00029945,120]
[392736166,1761894640656,-3e-08,0.00029,3]
[392736200,1761894643370,-314.41992117,0.00029,3]
[392736201,1761894643379,-158.3292384,0.0002979,2]
[392736202,1761894643388,-500.0,0.00029804,7]
[392736203,1761894643397,-204.0,0.0002989,2]
[392736204,1761894643406,-1000.0,0.0003,4]
[392736205,1761894643415,-500.0,0.00030152,7]
[392736206,1761894643425,-500.0,0.00030819,7]
[392736207,1761894643433,-190.66520813,0.00031,120]
[392736208,1761894643443,-1000.0,0.00031,5]
[392736209,1761894643452,-208.57736392,0.00031,120]
[392736210,1761894643462,-501.0,0.00031443,120]
[392736211,1761894643470,-503.00092129,0.00031604,7]
[392736212,1761894643479,-400.0,0.00031889,2]
[392736213,1761894643489,-227.0,0.00031889,3]
[392736214,1761894643498,-231.0,0.0003189,2]
[392736215,1761894643506,-190.66520813,0.000319,120]
[392736216,1761894643516,-6633.36686665,0.000319,2]
[392736217,1761894643525,-1000.0,0.00032,6]
[392736218,1761894643535,-300.0,0.00032639,30]
[392736219,1761894643544,-300.0,0.00032639,30]
[392736220,1761894643553,-300.0,0.00032639,30]
[392736221,1761894643562,-1000.0,0.00033,7]
[392736222,1761894643571,-501.0,0.00033015,120]
[392736223,1761894643580,-500.0,0.00033164,7]
[392736224,1761894643590,-162.70095677,0.0003389,120]
[392736225,1761894643599,-1000.0,0.00034,8]
[392736226,1761894643608,-400.0,0.00034302,2]
[392736227,1761894643617,-207.71764353,0.00034317,2]
[392736228,1761894643626,-373.5178666,0.00034317,2]
[392736229,1761894643635,-160.0,0.000344,2]
[392736230,1761894643644,-332.38279518,0.00034401,2]
[392736231,1761894643653,-598.28903133,0.00034401,2]
[392736232,1761894643662,-813.9716989,0.00034401,2]
[392736236,1761894933471,251.0,0.00027607,120]
[392736237,1761894934810,251.0,0.00028988,120]
[392736239,1761895236186,-235.87245985,0.00028658,30]
[392736240,1761895236218,-311.65185859,0.00029657,2]
[392736241,1761895236245,-155.82592929,0.00029657,2]
[392736242,1761895236275,-500.0,0.00030137,10]
[392736243,1761895236307,-251.0,0.00030437,120]
[392736244,1761895236420,-311.65185859,0.00030905,56]
[392736245,1761895236448,-248.58962074,0.00031047,2]
[392736246,1761895236476,-526.93680332,0.0003108,2]
[392736247,1761895236504,-154.07664845,0.0003108,2]
[392736248,1761895236532,-942.13102634,0.00031124,2]
[392736249,1761895236792,-974.54928256,0.00031124,2]
[392736250,1761895237179,167.0,0.00027686,120]
[392736251,1761895238559,167.0,0.0002907,120]
[392736252,1761895239100,-1749.9883071,0.00031124,2]
[392736253,1761895239129,-251.0,0.00031959,120]
[392736254,1761895239157,-180.43184543,0.00032581,2]
[392736255,1761895239185,-500.0,0.00032618,7]
[392736256,1761895239216,-155.82592929,0.00032681,110]
[392736257,1761895239247,-158.97436448,0.000332,117]
[392736258,1761895239276,-503.96013579,0.00033457,120]
[392736259,1761895239307,-361.0402447,0.00033569,30]
[392736260,1761895240113,167.0,0.00030524,120]
[392736261,1761895241329,167.0,0.0003205,120]
[392736263,1761895299977,240.650784,0.00013699,2]
[392736264,1761895300177,240.650784,0.00020187,2]
[392736265,1761895300460,240.650784,0.00026676,2]
[392736266,1761895358755,150.0,0.00020579,2]
[392736269,1761895531506,167.0,0.0002821,120]
[392736270,1761895532750,167.0,0.0002962,120]
[392736274,1761895704631,290.88548872,0.00015,2]
[392736306,1761895832557,-167.0,0.00031101,120]
[392736307,1761895832567,-277.20541913,0.00031899,3]
[392736308,1761895832578,-42.79458087,0.00031899,3]
[392736309,1761895832587,-300.0,0.00031899,2]
[392736311,1761895832596,-200.0,0.00031899,2]
[392736313,1761895832605,-310.56693649,0.000319,2]
[392736365,1761895838427,-524.87469203,0.000319,2]
[392736423,1761895840668,-549.49570447,0.000319,2]
[392736424,1761895840776,-1782.8852248,0.000319,2]
[392736425,1761895840787,-451.59621594,0.000319,2]
[392736430,1761895843518,-6893.51263368,0.000319,2]
[392736431,1761895843527,-1365.18829697,0.00031948,2]
[392736442,1761896128754,177.0,0.0002589,2]
[392736462,1761896181960,572.6104276,0.000253,2]
[392736612,1761896541506,190.75,0.000249,2]
[392736613,1761896605145,-500.0,0.00029162,7]
[392736614,1761896605177,-500.0,0.00029762,7]
[392736615,1761896605206,-500.0,0.000305,12]
[392736616,1761896605237,-163.59210537,0.00030779,2]
[392736617,1761896605267,-294.46578966,0.00030779,2]
[392736618,1761896605299,-168.0,0.00031249,2]
[392736619,1761896605330,-168.0,0.00031499,2]
[392736620,1761896605359,-951.91199265,0.00031727,2]
[392736621,1761896605390,-168.0,0.00031786,2]
[392736622,1761896605422,-168.0,0.0003182,2]
[392736623,1761896605452,-951.91199265,0.0003189,2]
[392736624,1761896605480,-398.5193661,0.000319,2]
[392736625,1761896607932,-135.20750714,0.000319,2]
[392736626,1761896607962,-960.70837183,0.000319,2]
[392736627,1761896607991,-202.39767735,0.000319,2]
[392736628,1761896608020,-300.0,0.00031928,2]
[392736629,1761896608048,-1776.43966035,0.00031929,2]
[392736630,1761896608238,-997.46818443,0.00031929,2]
[392736631,1761896611015,-523.49473717,0.00030779,2]
[392736632,1761896611144,-263.8040632,0.0003108,2]
[392736633,1761896611174,-2253.03538223,0.00031929,2]
[392736634,1761896611206,-151.0,0.00031929,2]
[392736635,1761896611238,-151.0,0.00031929,2]
[392736636,1761896611269,-151.0,0.00031929,2]
[392736637,1761896611301,-151.0,0.00031929,2]
[392736638,1761896611336,-151.0,0.00031929,2]
[392736639,1761896611367,-151.0,0.00031929,2]
[392736640,1761896611399,-151.0,0.00031929,2]
[392736641,1761896611432,-151.0,0.00031929,2]
[392736642,1761896611464,-151.0,0.00031929,2]
[392736643,1761896611495,-151.0,0.00031929,2]
[392736644,1761896611526,-151.0,0.00031929,2]
[392736645,1761896611556,-151.0,0.00031929,2]
[392736646,1761896611585,-32.62494175,0.00031929,2]
[392736647,1761896611836,-230.0917513,0.00031929,2]
[392736648,1761896613978,-1707.92599437,0.000319,2]
[392736649,1761896614011,-151.0,0.00031929,2]
[392736650,1761896614044,-151.0,0.00031929,2]
[392736651,1761896614076,-151.0,0.00031929,2]
[392736652,1761896614108,-151.0,0.00031929,2]
[392736653,1761896614139,-151.0,0.00031929,2]
[392736654,1761896614171,-151.0,0.00031929,2]
[392736655,1761896614204,-151.0,0.00031929,2]
[392736656,1761896614236,-151.0,0.00031929,2]
[392736657,1761896614265,-300.0,0.00031945,3]
[392736658,1761896614293,-300.0,0.00031946,3]
[392736659,1761896614321,-300.0,0.00031946,3]
[392736660,1761896614349,-300.0,0.00031946,3]
[392736661,1761896614379,-568.15801126,0.00031946,3]
[392736662,1761896614605,-631.84198874,0.00031946,3]
[392736663,1761896616741,5000.0,0.0002611,2]
[392736664,1761896624722,5000.0,0.0002611,2]
[392736665,1761896632866,4974.33289345,0.0002611,2]
[392736666,1761896640188,25.67710655,0.00020539,2]
[392736667,1761896640217,124.32289345,0.00020539,2]
[392736668,1761896640606,150.0,0.00022407,2]
[392736670,1761896745378,150.0,0.0002589,2]
[392736671,1761896823770,6627.42,0.0002611,2]
[392736711,1761897032769,-177.0,0.0002789,2]
[392736713,1761897032779,-205.86720572,0.00029062,2]
[392736715,1761897032790,-318.4301412,0.00029466,2]
[392736717,1761897032800,-253.02700912,0.00029547,2]
[392736718,1761897032809,-204.0,0.0002989,2]
[392736720,1761897032819,-448.83919,0.00030204,2]
[392736722,1761897032828,-292.79712039,0.00031406,2]
[392736724,1761897032838,-896.27120836,0.00031636,2]
[392736726,1761897032848,-151.0,0.00031654,2]
[392736728,1761897032857,-151.0,0.00031654,2]
[392736730,1761897032866,-151.0,0.00031654,2]
[392736733,1761897032876,-151.0,0.00031654,2]
[392736735,1761897032885,-151.0,0.00031654,2]
[392736737,1761897032895,-151.0,0.00031654,2]
[392736739,1761897032905,-151.0,0.00031654,2]
[392736741,1761897032915,-151.0,0.00031654,2]
[392736743,1761897032924,-151.0,0.00031654,2]
[392736745,1761897032936,-151.0,0.00031654,2]
[392736747,1761897032945,-151.0,0.00031654,2]
[392736749,1761897032954,-151.0,0.00031654,2]